Cogmind - Beta 10.2 @@@ ROGUE MODE // 2021.12.08 @ 02:48:16 Player: Yanche Result: Destroyed by S-27 Virus with Autogun Performance ------------- Evolutions (4) 2000 Regions Visited (7) 1400 Robots Destroyed (41) 205 Value Destroyed (1598) 1598 Prototype IDs (2) 40 Alien Tech Used (0) 0 Bonus (0) 0 TOTAL SCORE: 5243 Bonus ------- None Cogmind --------- Core Integrity 0/850 Matter 262/300 Energy 100/100 System Corruption 0% Temperature Cool (0) Movement Core (300) Ox5 Location -6/Factory Parts ------- > --- POWER (3) -------- (None) > --- PROPULSION (3) --- (None) > --- UTILITY (7) ------ Large Storage Unit Terrain Scan Processor Terrain Scan Processor > --- WEAPON (2) ------- (None) > --- INVENTORY (10) --- Armored Huge Wheel Improved Cooling System Enhanced Optical Array Advanced ECM Suite EM Shield Peak State ------------ > --- POWER ------------ Light Nuclear Core Light Fission Core Light Fission Core > --- PROPULSION ------- Carbon-fiber Leg Flexi-carbon Leg Flexi-carbon Leg > --- UTILITY ---------- Improved Heat Sink Large Storage Unit Advanced Terrain Scanner Terrain Scan Processor Terrain Scan Processor Improved Transmission Jammer Improved Light Armor Plating > --- WEAPON ----------- Plasma Rifle > --- INVENTORY -------- Armored Huge Wheel Advanced ECM Suite EM Shield [Rating: 51] Favorites ----------- Power Deuterium Engine Engine Deuterium Engine Power Core Light Nuclear Core Propulsion Armored Wheel Leg Flexi-carbon Leg Wheel Armored Wheel Utility Advanced Terrain Scanner Device Advanced Terrain Scanner Storage High-capacity Storage Unit Processor Seismic Analyzer Protection Improved Light Armor Plating Weapon Assault Rifle Energy Gun Small Laser Energy Cannon Plasma Cannon Ballistic Gun Assault Rifle Special Weapon Plasma Cutter Build | -11 -10 -9 -8 -7 -7 -7 -6 ------- Run | Scr Mat Mat Mat Fac Was Fac Fac Slots Evolved 8 | . . 2 2 2 . . 2 Power 2 | . . 1 . . . . 1 Propulsion 1 | . . . 1 . . . . Utility 5 | . . 1 1 2 . . 1 Weapon . | . . . . . . . . Parts Attached 90 | 6 3 17 19 2 3 13 27 Power 16 | 1 . 3 4 . . 2 6 Engine 9 | 1 . 3 2 . . 2 1 Core 7 | . . . 2 . . . 5 Reactor . | . . . . . . . . Propulsion 22 | 2 1 7 2 . . 2 8 Treads . | . . . . . . . . Leg 12 | . . 4 . . . . 8 Wheel 10 | 2 1 3 2 . . 2 . Hover . | . . . . . . . . Flight . | . . . . . . . . Utility 30 | 1 2 3 6 2 . 7 9 Device 19 | . 1 2 5 1 . 5 5 Storage 3 | 1 . 1 . . . 1 . Processor 3 | . 1 . . . . 1 1 Hackware . | . . . . . . . . Protection 5 | . . . 1 1 . . 3 Artifact . | . . . . . . . . Weapon 22 | 2 . 4 7 . 3 2 4 Energy Gun 11 | 2 . 2 2 . 2 1 2 Energy Cannon 3 | . . . 1 . 1 1 . Ballistic Gun 7 | . . 2 3 . . . 2 Ballistic Cannon . | . . . . . . . . Launcher . | . . . . . . . . Special Weapon 1 | . . . 1 . . . . Impact Weapon . | . . . . . . . . Slashing Weapon . | . . . . . . . . Piercing Weapon . | . . . . . . . . Special Melee Weapon . | . . . . . . . . Unidentified Prototypes 2 | . . . 1 . 1 . . Parts Lost 58 | . . 10 13 . 7 . 28 Power 12 | . . 3 2 . 1 . 6 Propulsion 12 | . . 3 3 . . . 6 Utility 16 | . . 1 3 . 2 . 10 Weapon 18 | . . 3 5 . 4 . 6 Highest Loss Streak 8 | . . 6 5 . 7 . 8 Average Slot Usage (%) 73 | . 98 87 82 84 21 59 69 Engine 7 | . 14 16 8 7 1 7 3 Core 3 | . . . 7 7 1 . 4 Leg 3 | . . 9 . . . . 6 Wheel 10 | . 28 7 14 7 1 6 7 Device 15 | . . 10 15 23 6 23 18 Storage 7 | . 14 11 9 7 2 6 6 Processor 8 | . 11 11 9 7 2 7 9 Protection 1 | . . . 1 7 1 . 3 Energy Gun 6 | . 28 13 2 . 1 1 3 Energy Cannon 1 | . . . . 7 . 3 2 Ballistic Gun 5 | . . 8 13 7 1 . . Naked Turns 149 | . . . . . 149 . . Heaviest Build 61 | 10 11 44 57 61 61 41 45 Greatest Support 60 | 26 26 26 40 12 12 49 60 Greatest Overweight (x) 12 | . . 4 4 5 10 8 12 Average Overweight (x) 1 | . . 2 2 5 . 1 . Largest Inventory Capacity 12 | 6 6 12 12 12 12 10 10 Average Capacity 10 | 5 6 11 12 12 6 9 10 Most Carried 12 | 3 6 11 12 9 10 8 10 Average Carried 7 | 1 4 8 10 8 5 5 6 Final Capacity 12 | 6 6 12 12 12 4 10 10 Final Carried 11 | 2 6 11 10 9 4 7 6 Class Distribution -------------------- 80% | Mutant 12% | Scavenger-Mutant 7% | Skirmisher Dominant Class ---------------- Mutant | -10/Materials Mutant | -9/Materials Mutant | -8/Materials Skirmisher | -7/Factory Mutant | -7/Waste Mutant | -7/Factory Mutant | -6/Factory Resources | -11 -10 -9 -8 -7 -7 -7 -6 ----------- Run | Scr Mat Mat Mat Fac Was Fac Fac Matter Collected 1329 | 208 59 310 393 . . 127 232 Remotely 264 | . . 42 95 . . 127 . Salvage Created 1796 | . 59 498 712 54 . 127 346 Parts 95 | . 3 29 33 3 . 7 20 Haulers Intercepted 1 | . . . 1 . . . . Recyclers Shooed 7 | . . 1 2 . . . 4 Parts Field Recycled . | . . . . . . . . Retrieved Matter . | . . . . . . . . Parts Self-Destructed . | . . . . . . . . Prevented . | . . . . . . . . Kills | -11 -10 -9 -8 -7 -7 -7 -6 ------- Run | Scr Mat Mat Mat Fac Was Fac Fac Combat Hostiles Destroyed 36 | . 1 10 13 1 . 2 9 Guns 29 | . 1 9 11 . . . 8 Cannons 6 | . . . 2 1 . 2 1 AOE 1 | . . 1 . . . . . Classes Destroyed 10 | . 2 3 4 . . . 1 Worker 2 | . 1 . 1 . . . . Builder 1 | . . 1 . . . . . Hauler 1 | . . . 1 . . . . Recycler 1 | . . 1 . . . . . Swarmer 4 | . . . . . . . 4 Grunt 19 | . 1 8 7 1 . . 2 Brawler 1 | . . . 1 . . . . Duelist 1 | . . . 1 . . . . Sentry 8 | . . 2 3 . . 2 1 Hunter 3 | . . . 1 . . . 2 Best Kill Streak 5 | . 2 5 4 1 . 1 4 Combat Bots Only 4 | . 1 4 4 1 . 1 4 Max Kills in Single Turn 2 | . 1 2 1 1 . 1 1 Gunslinging . | . . . . . . . . Exploded 1 | . . 1 . . . . . Melee . | . . . . . . . . Uniques/NPCs Destroyed . | . . . . . . . . Combat | -11 -10 -9 -8 -7 -7 -7 -6 -------- Run | Scr Mat Mat Mat Fac Was Fac Fac Damage Taken 6603 | . 92 963 1486 . 433 124 3505 Core 1852 | . 50 185 417 . 293 57 850 Absorbed by Shields . | . . . . . . . . Core Remaining (%) 61 | 100 80 53 24 . . 50 . Volleys Fired 173 | . 4 49 57 1 9 5 48 Largest 2 | . 2 2 2 2 2 2 2 Hottest 160 | . 80 85 130 86 128 160 160 Shots Fired 298 | . 8 92 109 2 17 8 62 Gun 278 | . 8 92 105 1 15 2 55 Cannon 20 | . . . 4 1 2 6 7 Launcher . | . . . . . . . . Special . | . . . . . . . . Kinetic 145 | . . 34 86 1 6 . 18 Thermal 127 | . 4 43 19 . 9 8 44 Explosive . | . . . . . . . . Electromagnetic 26 | . 4 15 4 1 2 . . Robot Hit Streak 16 | . 3 7 10 8 13 16 7 Robot Miss Streak 7 | . 1 5 7 . 1 1 6 Penetration Max . | . . . . . . . . Secondary Targets 3 | . . 1 1 . . . 1 Max Gunslinging Chain 1 | . . 1 1 . . . 1 Shots Hit Robots 212 | . 5 59 80 1 16 7 44 Core Hits 136 | . 3 32 46 1 6 5 43 Critical Hits . | . . . . . . . . Critical Kills . | . . . . . . . . Critical Parts Destroyed . | . . . . . . . . Melee Attacks . | . . . . . . . . Impact . | . . . . . . . . Slashing . | . . . . . . . . Piercing . | . . . . . . . . Sneak Attacks . | . . . . . . . . Combat Hostiles . | . . . . . . . . Follow-up Attacks . | . . . . . . . . Damage Inflicted 3072 | . 58 712 1056 31 265 156 794 Guns 2660 | . 58 638 952 . 250 34 728 Cannons 288 | . . . 78 31 4 122 53 Explosions 74 | . . 74 . . . . . Melee . | . . . . . . . . Ramming 50 | . . . 26 . 11 . 13 Kinetic 1196 | . . 196 741 . 94 . 165 Thermal 1531 | . 20 372 211 . 156 156 616 Explosive . | . . . . . . . . Electromagnetic 295 | . 38 144 78 31 4 . . Impact . | . . . . . . . . Slashing . | . . . . . . . . Piercing . | . . . . . . . . Highest Corruption 13 | . . . . . 13 13 . Average Corruption 12 | . . . . . 10 13 . Corruption Purged . | . . . . . . . . Effects 30 | . . . . . 10 20 . Message Errors 11 | . . . . . 4 7 . Matter Fused 3 | . . . . . 1 2 . Heat Flow Errors 1 | . . . . . . 1 . Energy Discharges 2 | . . . . . . 2 . Data Loss (minor) 2 | . . . . . 2 . . Data Loss (major) 2 | . . . . . . 2 . Misfires 1 | . . . . . . 1 . Misdirections 5 | . . . . . 2 3 . Targeting Errors 3 | . . . . . 1 2 . Overload Shots . | . . . . . . . . Overflow Damage . | . . . . . . . . Projectiles . | . . . . . . . . Explosions . | . . . . . . . . Melee . | . . . . . . . . Knockbacks 1 | . . . 1 . . . . Impact 1 | . . . 1 . . . . Kinetic . | . . . . . . . . Secondary . | . . . . . . . . Self-Inflicted Damage 18 | . . . 13 . 5 . . Shots . | . . . . . . . . Rammed 4 | . . . 1 . 3 . . Targets Rammed 7 | . . . 1 . 3 . 3 Kicked 3 | . . . . . . . 3 Crushed . | . . . . . . . . Highest Temperature 329 | . 82 316 329 . 24 192 127 Average Temperature 95 | . 47 118 143 . 18 83 37 Received Heat Transfer 1635 | . 36 456 522 . . 42 579 Effects 2 | . . 1 1 . . . . Energy Bleed 2 | . . 1 1 . . . . Siege Activations . | . . . . . . . . Robots Corrupted . | . . . . . . . . Combat Hostiles . | . . . . . . . . Parts Fried . | . . . . . . . . Impact Corruptions . | . . . . . . . . Robots Melted . | . . . . . . . . Combat Hostiles . | . . . . . . . . Parts Melted 1 | . . . . . . . 1 Heat Transferred 2753 | . 50 615 270 . 333 325 1160 Parts Sabotaged . | . . . . . . . . Parts Stolen . | . . . . . . . . Parts Stripped . | . . . . . . . . Power Chain Reactions 1 | . . 1 . . . . . Missiles Intercepted . | . . . . . . . . Alert | -11 -10 -9 -8 -7 -7 -7 -6 ------- Run | Scr Mat Mat Mat Fac Was Fac Fac Peak Influence 245 | . 35 214 245 99 34 100 95 Initial 79 | . . 14 7 79 34 10 49 Average 64 | . 8 108 85 96 14 35 52 Maximum Alert Level 1 | . . 1 1 . . . . Low Security (%) 97 | 100 100 90 97 100 100 100 100 Level 1 2 | . . 9 2 . . . . Level 2 . | . . . . . . . . Level 3 . | . . . . . . . . Level 4 . | . . . . . . . . Level 5 . | . . . . . . . . High Security . | . . . . . . . . Max Security . | . . . . . . . . Squads Dispatched 7 | . 1 2 . . . . 4 Investigation . | . . . . . . . . Extermination 1 | . . . . . . . 1 Reinforcement 6 | . 1 2 . . . . 3 Assault . | . . . . . . . . Garrison . | . . . . . . . . Intercept . | . . . . . . . . Construction Impeded 1 | . . . . . . . 1 Haulers Reinforced 1 | . . . . . . . 1 Stealth | -11 -10 -9 -8 -7 -7 -7 -6 --------- Run | Scr Mat Mat Mat Fac Was Fac Fac Distress Signals 5 | . . 2 . . . . 3 Communications Jammed . | . . . . . . . . Distress Signals . | . . . . . . . . Times Spotted 69 | . 2 16 19 1 6 2 23 Peak Tracking Total 9 | . 1 5 4 1 6 1 9 Tactical Retreats 4 | . . 1 1 . . . 2 Traps | -11 -10 -9 -8 -7 -7 -7 -6 ------- Run | Scr Mat Mat Mat Fac Was Fac Fac Traps Triggered 7 | . 1 . 2 1 . 1 2 Indirectly . | . . . . . . . . Trap Hack Attempts . | . . . . . . . . Triggered . | . . . . . . . . Disarmed 10 | . 4 . . . . 6 . Reprogrammed . | . . . . . . . . Reused . | . . . . . . . . Traps Extracted . | . . . . . . . . Installed . | . . . . . . . . Triggered . | . . . . . . . . Machines | -11 -10 -9 -8 -7 -7 -7 -6 ---------- Run | Scr Mat Mat Mat Fac Was Fac Fac Machines Disabled 1 | . . . . . . . 1 Max in Single Turn 1 | . . . . . . . 1 Machines Sabotaged . | . . . . . . . . Garrisons Compromised . | . . . . . . . . Overloaded Fab Kills . | . . . . . . . . Fab Network Shutdowns . | . . . . . . . . Hacking | -11 -10 -9 -8 -7 -7 -7 -6 --------- Run | Scr Mat Mat Mat Fac Was Fac Fac Machines Accessed 12 | . 4 . 4 . . 1 3 Terminals 9 | . 3 . 4 . . 1 1 Fabricators 1 | . . . . . . . 1 Repair Stations . | . . . . . . . . Recycling Units 1 | . 1 . . . . . . Scanalyzers . | . . . . . . . . Garrison Access 1 | . . . . . . . 1 Total Hacks 26 | . 8 . 11 . . 3 4 Successful 18 | . 5 . 8 . . 2 3 Failed 8 | . 3 . 3 . . 1 1 Catastrophic . | . . . . . . . . Database Lockouts . | . . . . . . . . Manual . | . . . . . . . . Terminals 21 | . 5 . 11 . . 3 2 Fabricators 1 | . . . . . . . 1 Repair Stations . | . . . . . . . . Recycling Units 3 | . 3 . . . . . . Scanalyzers . | . . . . . . . . Garrison Access 1 | . . . . . . . 1 Terminal Hacks 15 | . 3 . 8 . . 2 2 Record 1 | . . . . . . . 1 Robot Analysis 2 | . 1 . 1 . . . . Branch Access Points 1 | . . . 1 . . . . Emergency Access Points 1 | . . . 1 . . . . Alert Level 1 | . . . 1 . . . . Locate Traps 2 | . 1 . . . . 1 . Disarm Traps 2 | . 1 . . . . 1 . Dispatch Records 1 | . . . 1 . . . . Transport Status 1 | . . . 1 . . . . Recall Reinforcements 1 | . . . 1 . . . . Hauler Manifests 1 | . . . 1 . . . . Zone Layout 1 | . . . . . . . 1 Fabricator Hacks 1 | . . . . . . . 1 Network Status 1 | . . . . . . . 1 Repair Station Hacks . | . . . . . . . . Recycling Unit Hacks 2 | . 2 . . . . . . Report Inventory 1 | . 1 . . . . . . Retrieve Components 1 | . 1 . . . . . . Scanalyzer . | . . . . . . . . Garrison Access Hacks . | . . . . . . . . Unauthorized Hacks . | . . . . . . . . Terminals . | . . . . . . . . Fabricators . | . . . . . . . . Repair Stations . | . . . . . . . . Recycling Units . | . . . . . . . . Scanalyzers . | . . . . . . . . Garrison Access . | . . . . . . . . Data Cores Recovered . | . . . . . . . . Used . | . . . . . . . . Hacking Detections 9 | . 4 . 2 . . . 3 Full Trace Events . | . . . . . . . . Feedback Events . | . . . . . . . . Feedback Blocked . | . . . . . . . . Robot Schematics Acquired . | . . . . . . . . Robots Built . | . . . . . . . . Matter . | . . . . . . . . Time . | . . . . . . . . Total Robot Build Rating . | . . . . . . . . Part Schematics Acquired . | . . . . . . . . Parts Built . | . . . . . . . . Matter . | . . . . . . . . Time . | . . . . . . . . Total Part Build Rating . | . . . . . . . . Parts Repaired . | . . . . . . . . Time . | . . . . . . . . Parts Recycled . | . . . . . . . . Recycled Matter . | . . . . . . . . Retrieved Matter . | . . . . . . . . Retrieved Components 1 | . 1 . . . . . . Parts Scanalyzed . | . . . . . . . . Part Schematics Acquired . | . . . . . . . . Parts Damaged . | . . . . . . . . Bothacking | -11 -10 -9 -8 -7 -7 -7 -6 ------------ Run | Scr Mat Mat Mat Fac Was Fac Fac Used RIF Installer . | . . . . . . . . Robots Hacked . | . . . . . . . . Non-combat . | . . . . . . . . Combat . | . . . . . . . . Robot Hacks Applied . | . . . . . . . . Relay Couplers Released . | . . . . . . . . Robots Rewired . | . . . . . . . . Allies Hacked . | . . . . . . . . Hacks Repelled . | . . . . . . . . Allies | -11 -10 -9 -8 -7 -7 -7 -6 -------- Run | Scr Mat Mat Mat Fac Was Fac Fac Total Allies . | . . . . . . . . Largest Group . | . . . . . . . . Highest-Rated Group . | . . . . . . . . Highest-Rated Ally . | . . . . . . . . Total Orders . | . . . . . . . . Ally Attacks . | . . . . . . . . Total Damage . | . . . . . . . . Kills . | . . . . . . . . Allies Corrupted . | . . . . . . . . Allies Melted . | . . . . . . . . Intel | -11 -10 -9 -8 -7 -7 -7 -6 ------- Run | Scr Mat Mat Mat Fac Was Fac Fac Robot Analysis Total 2 | . 1 . 1 . . . . Derelict Logs Recovered . | . . . . . . . . Drone Launches . | . . . . . . . . Drone Recoveries . | . . . . . . . . Exploration | -11 -10 -9 -8 -7 -7 -7 -6 ------------- Run | Scr Mat Mat Mat Fac Was Fac Fac Turns Passed 3008 | 46 186 471 760 179 214 313 839 Spaces Moved 2158 | 39 184 209 450 124 311 240 601 Core 305 | 3 . . . . 289 9 4 Treads . | . . . . . . . . Legs 279 | . . 80 . . . . 199 Wheels 1574 | 36 184 129 450 124 22 231 398 Hover . | . . . . . . . . Flight . | . . . . . . . . Fastest Speed 50 | 50 90 90 100 140 50 95 95 Average Speed 106 | 87 90 138 116 140 57 113 110 Slowest Speed 650 | 100 90 240 130 140 550 450 650 Overloaded Moves . | . . . . . . . . Propulsion Burnouts . | . . . . . . . . Robots Hopped . | . . . . . . . . Cave-ins Triggered . | . . . . . . . . Exploration Rate (%) 23 | 4 25 17 31 4 88 7 15 Regions Visited 7 Branch Regions . Pre-discovered Areas . | . . . . . . . . Known Exits Taken . | . . . . . . . . Unknown Exits Taken 5 | 1 1 1 1 . . 1 . Scrap Searched . | . . . . . . . . Spaces Dug . | . . . . . . . . Terrain Destroyed 3 | . . 3 . . . . . Melee . | . . . . . . . . Projectile . | . . . . . . . . AOE 3 | . . 3 . . . . . Terrain Rammed . | . . . . . . . . Walls Destroyed . | . . . . . . . . Machines Disabled . | . . . . . . . . Actions | -11 -10 -9 -8 -7 -7 -7 -6 --------- Run | Scr Mat Mat Mat Fac Was Fac Fac Total 2562 | 49 196 297 581 128 328 271 712 Wait 44 | . . 6 24 . 2 . 12 Move 2152 | 38 183 208 449 124 310 239 601 Hop . | . . . . . . . . Pick Up 67 | 5 4 12 17 1 . 14 14 Fast Attach 35 | 3 2 7 7 . . 2 14 Attach 54 | 3 1 9 12 2 3 11 13 Detach 8 | . 1 2 3 . 1 . 1 Swap 1 | . . 1 . . . . . Drop 21 | . 1 3 11 . . . 6 Fire 173 | . 4 49 57 1 9 5 48 Melee . | . . . . . . . . Ram 4 | . . . 1 . 3 . . Kick 3 | . . . . . . . 3 Crush . | . . . . . . . . Escape Stasis . | . . . . . . . . Rewire . | . . . . . . . . Trap . | . . . . . . . . Miscellaneous . | . . . . . . . . Route ------- -11/Scrapyard -10/Materials -9/Materials -8/Materials -7/Factory -7/Waste -7/Factory -6/Factory History --------- Turn | Location | Event 29 | -11/Scrapyard | Discovered new exit (range 16) 47 | -11/Scrapyard | Entered Materials 228 | -10/Materials | Discovered new exit (range 4) 233 | -10/Materials | Entered another Materials area 233 | -9/Materials | Evolved 2 slots: Power x1, Utility x1 306 | -9/Materials | Build established: Mutant 383 | -9/Materials | Lost 3 parts (1p1n1w) 614 | -9/Materials | Lost 6 parts (2p1n1u2w) 695 | -9/Materials | Discovered new exit (range 10) 704 | -9/Materials | Entered another Materials area 704 | -8/Materials | Evolved 2 slots: Propulsion x1, Utility x1 858 | -8/Materials | Lost 5 parts (1p1n2u1w) 878 | -8/Materials | Core integrity fell below 50% 937 | -8/Materials | Lost 4 parts (1p1u2w) 1453 | -8/Materials | Discovered new exit (range 10) 1464 | -8/Materials | Entered Factory 1464 | -7/Factory | Evolved 2 slots: Utility x2 1643 | -7/Factory | Sucked down chute 1643 | -7/Factory | Entered Waste 1656 | -7/Waste | Spotted C-40 Crusher 1658 | -7/Waste | EMP discharged 1685 | -7/Waste | Spotted C-40 Crusher 1692 | -7/Waste | Crushed by Compactor (1 part destroyed, 1 dropped) 1695 | -7/Waste | Crushed by Compactor (1 part destroyed, 1 dropped) 1698 | -7/Waste | Crushed by Compactor (1 part destroyed, 2 dropped) 1701 | -7/Waste | Crushed by Compactor (1 part destroyed, 1 dropped) 1703 | -7/Waste | Spotted C-40 Crusher 1703 | -7/Waste | Spotted C-40 Crusher 1705 | -7/Waste | Crushed by Compactor (1 part destroyed, 1 dropped) 1708 | -7/Waste | Crushed by Compactor (1 part destroyed) 1735 | -7/Waste | Spotted C-40 Crusher 1739 | -7/Waste | Lost 7 parts (1p2u4w) 1758 | -7/Waste | EMP discharged 1758 | -7/Waste | System corruption reached 10% 1766 | -7/Waste | Spotted C-40 Crusher 1844 | -7/Waste | Discovered new exit (range 11) 1857 | -7/Waste | Entered Factory 2148 | -7/Factory | Discovered new exit (range 6) 2170 | -7/Factory | Entered another Factory area 2170 | -6/Factory | Evolved 2 slots: Power x1, Utility x1 2522 | -6/Factory | Lost 8 parts (1p5u2w) 2699 | -6/Factory | Lost 3 parts (1n2w) 2764 | -6/Factory | Lost 4 parts (2p1u1w) 2851 | -6/Factory | Core integrity fell below 50% 2887 | -6/Factory | Lost 3 parts (1n2u) 2988 | -6/Factory | Core integrity fell below 20% 3009 | -6/Factory | Destroyed by S-27 Virus with Autogun Last Messages --------------- Hvy. Machine Gun destroyed. Slug penetrates Wall. Hrd. Medium Armor Plating destroyed. Lgt. Fission Core destroyed. R-10 Processor collects Lgt. Angular Momentum Engine. Penetrated by Slug. Imp. Transmission Jammer destroyed. Penetrated by Slug. Acquired Carbon-fiber Leg. R-10 Processor collects Hvy. Laser. Slug penetrates Wall. K-01 Serf collects debris. K-01 Serf cleans the Construction Platform. Slug penetrates Construction Platform. W-25 Informer sends out distress signal. K-01 Serf destroyed. Acquired 21 matter. ALERT: Rogue bot located, Programmers report to Factory Zone 4Y. Carbon-fiber Leg destroyed. K-01 Serf cleans the Construction Platform. Map ----- +----------------------------------------------------+ | # # ## ### ## ? | | # ##### # ## ### #? ??" ? | | ## ####?## ###############?# ### = ## """ | | ??# ####### # #### ### % ## ?"?? | | ?#? # # + ! """ """ #### ###! ## ?"??? | | ??# # # # """ "?"??### ### ## "" | | ?#??? # """ # # """ """ ##?# ### !## | | ??# ??# """ # # ? #### ### ###??### | | ??? ? # """ # ############??### ### ##??###? | | ???? ?# + ##?##?##?#####??# #?# #??#?### | | ??????+ """ # ####?# ? #?#?# ### ! #?####?# | | ??????# """ # ##??#?? ? ??### #?# #?##??## | | ??????# """ # #??##? "?"" #?#?# ####+########### | | ??????# # #?#?#???R"??##??# #### ### | | ??????# # #????? ????????## ## # | | ??????# # #??#?? ?????##### ## T # | | ??????###/### ########+#### "" + | | ????????# #### # | | ????????# % g #??# # | | ????????+ """ """" """"h"""" ##?####### | | ????????# """" """" """" """" #####?#?## | | ????????# """" """" """"="""" #??#?????######### | | ????????# """" """" """" """" #?##??##??##??##?? | | ????????# """" """"k""""="""" #?#??????????????? | | ????????# """" """" """" """" #?#?????####?#??## | | ????????# """" """" """"@"""" k#???????#??#?????# | | ????????# ? w R #?#???#???#??????# | | ????????# ?? ##???????##??????? | | ???????? ? #??#???#?#????#??# | | ????????####?#####+##### #?#?????#??#?????? | | ???????????????????????# #???#?????????#??? | | ???????????????????????# #?##???#??#???#??? | | ???????????????????????# #?#??#??#?????#??? | | ???????????????????????#s #??????#?#???????? | | ???????????????????????# s #???#????????????? | | ???????????????????????# s k #???#????????????? | | ???????????????????????# k#????????????????? | | ???????????????????????# s #????????????????? | | ???????????????????????? #????????????????? | | ???????????????????????? ???????????????????? | | ???????????????????????? ?????????????????????? | | ?????????????????????????????????????????????????? | | ?????????????????????????????????????????????????? | | ?????????????????????????????????????????????????? | | ?????????????????????????????????????????????????? | | ?????????????????????????????????????????????????? | | ?????????????????????????????????????????????????? | | ?????????????????????????????????????????????????? | | ?????????????????????????????????????????????????? | | ?????????????????????????????????????????????????? | +----------------------------------------------------+ Best States ------------- Heat Dissipation 51 Energy Generation 40 Energy Capacity 335 Matter Stores 300 Matter Capacity 300 Sight Range 16 Robot Scan Range 13 Terrain Scan Range 20 Terrain Scan Density 160 Jamming Range 12 Additional Mass Support 9 Armor Coverage 225 Resistance: EM 15 Phase Shifting 5 Evasion (%) 50 Energy Filtering 30 Item Schematics ----------------- None Robot Schematics ------------------ None Fabricated ------------ Nothing Alien Tech Used ----------------- None Achievements -------------- None Challenges ------------ None Game ------ Seed BiocellInsulationCompactor Manual? 0 Play Time 00:58:04 Cumulative 34.4 hours Start 2021.12.08 @ 01:46:46 End 2021.12.08 @ 02:48:16 Sessions 1 Manual Loads 0 Difficulty Rogue Special Mode None Game No. 14 Rogue 4 Adventurer 0 Explorer 10 Win Type - Total 0 Types 0/0/0/0/0/0/0/0/0 Lore% 30 Gallery% 36 Achievement% 23 Wizard Run 0 Options --------- ASCII 0 Keyboard 0 Movement Numpad Keybinds 0 Fullscreen 1 Font 18/SmallcapsGlow Map View 76x50 Tactical HUD 0 Map Filters NONE Filters NONE Steam 1 RUN: 9c970a8d-7563-435c-a2db-e175f875dc02